lending/lending_fUSD_20260119
["ID","MTS","AMOUNT","RATE_DAILY","PERIOD"]
[402672818,1768784896461,-500.0,0.00015894,2]
[402672819,1768784896486,-500.0,0.00015894,2]
[402672820,1768784896512,-500.0,0.00015894,2]
[402672821,1768784896536,-500.0,0.00015894,2]
[402672822,1768784896563,-500.0,0.00015894,2]
[402672823,1768784896586,-490.40910609,0.00015894,2]
[402672824,1768784896612,-500.0,0.00015894,2]
[402672825,1768784896637,-500.0,0.00015894,2]
[402672826,1768784896663,-500.0,0.00015894,2]
[402672827,1768784896689,-500.0,0.00015894,2]
[402672828,1768784896715,-500.0,0.00015894,2]
[402672829,1768784896740,-500.0,0.00015894,2]
[402672830,1768784896767,-500.0,0.00015894,2]
[402672831,1768784896792,-500.0,0.00015894,2]
[402672832,1768784896819,-500.0,0.00015894,2]
[402672833,1768784896844,-500.0,0.00015894,2]
[402672834,1768784896869,-500.0,0.00015894,2]
[402672835,1768784896894,-500.0,0.00015894,2]
[402672836,1768784896921,-200.0,0.00015894,2]
[402672837,1768784896946,-500.0,0.00015894,2]
[402672838,1768784896972,-920.01809191,0.00015894,2]
[402672839,1768784896998,-920.01809191,0.00015894,2]
[402672840,1768784897025,-920.01809191,0.00015894,2]
[402672841,1768784897051,-920.01809191,0.00015894,2]
[402672842,1768784897076,-920.01809191,0.00015894,2]
[402672843,1768784897099,-430.72605165,0.00015894,2]
[402672844,1768784897121,-543.22572868,0.00015894,2]
[402672845,1768784897144,-500.0,0.00015894,2]
[402672846,1768784897167,-337.21220376,0.00015894,2]
[402672847,1768784897193,-920055.2452,0.00015895,2]
[402672848,1768784897216,-500.0,0.00015956,2]
[402672849,1768784897240,-330.82245829,0.00015968,2]
[402672850,1768784897271,-514.67707762,0.00015973,2]
[402672851,1768784897294,-537.63071997,0.00015973,2]
[402672852,1768784897317,-500.0,0.00015973,2]
[402672853,1768784897339,-500.0,0.00015973,2]
[402672854,1768784897362,-500.0,0.00015973,2]
[402672855,1768784897384,-500.0,0.00015973,2]
[402672856,1768784897405,-500.0,0.00015973,2]
[402672857,1768784897428,-500.0,0.00015973,2]
[402672858,1768784897450,-500.0,0.00015973,2]
[402672859,1768784897472,-500.0,0.00015973,2]
[402672860,1768784897495,-500.0,0.00015973,2]
[402672861,1768784897517,-166.66,0.0001599,2]
[402672862,1768784898557,500.0,0.00015973,2]
[402672863,1768784898588,166.50274627,0.00015973,2]
[402672864,1768784898628,500.0,0.00015973,2]
[402672865,1768784899061,533.0,0.00015893,2]
[402672866,1768784906064,500.0,0.00015894,2]
[402672867,1768784907878,800.0,0.00015895,2]
[402672868,1768784908187,800.0,0.00015895,2]
[402672869,1768784909525,800.0,0.00015895,2]
[402672870,1768784909695,800.0,0.00015895,2]
[402672871,1768784909779,800.0,0.00015895,2]
[402672872,1768784909885,800.0,0.00015895,2]
[402672873,1768784910060,800.0,0.00015895,2]
[402672874,1768784910374,800.0,0.00015895,2]
[402672875,1768784910700,800.0,0.00015895,2]
[402672876,1768784911001,800.0,0.00015895,2]
[402672877,1768784911337,800.0,0.00015895,2]
[402672878,1768784911665,167.01,0.00015895,2]
[402672879,1768784911688,632.99,0.00015895,2]
[402672880,1768784911957,800.0,0.00015895,2]
[402672881,1768784912256,800.0,0.00015895,2]
[402672882,1768784913800,-300.0,0.00015895,2]
[402672883,1768784915994,-342.51254721,0.00015895,2]
[402672884,1768784918692,-157.48745279,0.00015895,2]
[402672885,1768784918713,-40.87859464,0.00015895,2]
[402672886,1768784928336,-375.93761632,0.00015895,2]
[402672887,1768784931477,-267.66268331,0.00015895,2]
[402672888,1768784934170,-177.00412377,0.00015894,2]
[402672889,1768784934194,-115.52110573,0.00015895,2]
[402672890,1768784934218,-56.51448369,0.00015895,2]
[402672891,1768784937996,-202.0252419,0.00015895,2]
[402672892,1768784945915,-369.61479091,0.00015895,2]
[402672893,1768784948147,-171.8454835,0.00015895,2]
[402672894,1768784948173,-54.64302397,0.00015895,2]
[402672895,1768784949539,-195.0,0.00015895,2]
[402672896,1768784970797,-35.02446403,0.00015895,2]
[402672897,1768784970822,-159.97553597,0.00015973,2]
[402672898,1768784972306,-213.1185493,0.00015973,2]
[402672899,1768784975143,-126.90591473,0.00015973,2]
[402672900,1768784975166,-143.24909768,0.00015973,2]
[402672901,1768784981724,-227.68167756,0.00015896,2]
[402672902,1768784987283,-217.54982123,0.00015896,2]
[402672903,1768784989973,-311.88014859,0.00015896,2]
[402672904,1768784992233,-317.54982123,0.00015896,2]
[402672905,1768784995041,-168.00441332,0.00015896,2]
[402672906,1768784998211,-156.20992786,0.00015896,2]
[402672907,1768785000825,-209.44576545,0.00015794,2]
[402672908,1768785003987,-249.92279193,0.00015794,2]
[402672909,1768785005948,-184.9149769,0.00015794,2]
[402672910,1768785007109,-962430.53936572,0.00015794,2]
[402672911,1768785007160,-282.0,0.00015794,2]
[402672912,1768785007200,-1156.73418001,0.00015896,2]
[402672913,1768785007231,-356.75090232,0.00015973,2]
[402672914,1768785007278,-500.0,0.00015973,2]
[402672915,1768785008492,200.0,0.0001599,2]
[402672916,1768785008557,427.38,0.00015784,2]
[402672917,1768785008775,427.38,0.00015784,2]
[402672918,1768785008982,427.38,0.00015784,2]
[402672919,1768785009194,427.38,0.00015784,2]
[402672920,1768785009254,-213.95230331,0.00016087,2]
[402672921,1768785009392,427.38,0.00015784,2]
[402672922,1768785010824,3905.10424149,0.00015796,2]
[402672923,1768785011330,-408.06722936,0.00016087,2]
[402672924,1768785013930,-336.1850212,0.00016087,2]
[402672925,1768785016244,541.09865046,0.00015973,2]
[402672926,1768785017570,-526.4302388,0.0001603,2]
[402672927,1768785019154,-582.58927453,0.0001603,2]
[402672928,1768785023503,-279.31751064,0.0001603,2]
[402672929,1768785025496,-201.66622044,0.0001603,2]
[402672930,1768785027433,-215.74450503,0.0001603,2]
[402672931,1768785030061,-296.62896685,0.0001603,2]
[402672933,1768785032076,-1802.72752518,0.0001603,2]
[402672934,1768785032086,-253.31544613,0.00016087,2]
[402672935,1768785032096,-213.63728059,0.00016106,2]
[402672936,1768785032107,-556.0,0.0001613,2]
[402672937,1768785032117,-200.0,0.0001615,2]
[402672938,1768785032128,-676.52,0.00016168,2]
[402672939,1768785032139,-166.66,0.00016263,2]
[402672940,1768785032151,-3905.10424147,0.00016264,2]
[402672941,1768785032161,-166.66,0.00016301,2]
[402672942,1768785032171,-200.0,0.00016311,2]
[402672943,1768785032181,-300.0,0.00016319,2]
[402672944,1768785032193,-500.0,0.00016356,2]
[402672945,1768785032203,-500.0,0.00016356,2]
[402672946,1768785032213,-1115.12,0.00016356,2]
[402672947,1768785032223,-318.2,0.00016356,2]
[402672948,1768785032232,-1200.0,0.00016375,2]
[402672949,1768785032241,-1852.42,0.00016376,2]
[402672950,1768785032251,-627.41256557,0.00016438,2]
[402672951,1768785032260,-676.52,0.00016442,2]
[402672952,1768785032270,-300.0,0.00016461,2]
[402672953,1768785032280,-300.0,0.00016461,2]
[402672954,1768785032290,-2487.54,0.00016462,2]
[402672955,1768785032299,-200.0,0.00016475,2]
[402672956,1768785032310,-3905.10424147,0.00016497,2]
[402672957,1768785032320,-500.0,0.00016521,2]
[402672958,1768785032329,-150.0,0.00016544,2]
[402672959,1768785032339,-150.12,0.00016602,2]
[402672960,1768785032349,-151.0,0.00016619,2]
[402673002,1768785032714,-151.0,0.00016619,2]
[402673004,1768785032724,-151.0,0.00016624,2]
[402673006,1768785032733,-151.0,0.00016626,2]
[402673008,1768785032742,-200.0,0.00016639,2]
[402673010,1768785032752,-151.0,0.00016667,2]
[402673011,1768785032761,-151.0,0.00016674,2]
[402673012,1768785032771,-151.0,0.00016677,2]
[402673013,1768785032780,-676.52,0.00016716,2]
[402673014,1768785032789,-33496.51,0.00016719,2]
[402673015,1768785032799,-3905.10424147,0.00016731,2]
[402673016,1768785032808,-150.0,0.00016771,2]
[402673017,1768785032818,-1999.0,0.00016779,2]
[402673018,1768785032827,-174.38013773,0.00016779,2]
[402673019,1768785032836,-574.12855637,0.00016779,2]
[402673020,1768785032847,-166.66,0.00016783,2]
[402673021,1768785032856,-206.82,0.00016853,2]
[402673022,1768785032865,-379.49,0.00016884,2]
[402673023,1768785032874,-161.0,0.000169,2]
[402673024,1768785032884,-161.0,0.000169,2]
[402673025,1768785032895,-676.52,0.0001699,2]
[402673026,1768785032905,-250.0,0.00017,2]
[402673027,1768785032915,-170.81,0.00017098,2]
[402673028,1768785032924,-423.0,0.00017151,2]
[402673029,1768785032934,-423.0,0.00017163,2]
[402673030,1768785032944,-200.0,0.00017194,2]
[402673031,1768785032954,-423.0,0.00017221,2]
[402673032,1768785032964,-1000.0,0.0001726,2]
[402673033,1768785032975,-676.52,0.00017264,2]
[402673034,1768785032984,-423.0,0.0001729,2]
[402673035,1768785032995,-166.66,0.00017302,2]
[402673036,1768785033005,-189.0,0.00017315,2]
[402673037,1768785033014,-595.37131296,0.00017327,2]
[402673038,1768785033024,-1852.44502981,0.00017363,2]
[402673039,1768785033033,-1000.0,0.00017443,2]
[402673040,1768785033043,-1000.0,0.00017452,2]
[402673041,1768785033052,-250.0,0.00017454,2]
[402673042,1768785033061,-195.0,0.00017455,2]
[402673043,1768785033071,-250.0,0.00017474,2]
[402673044,1768785033082,-250.0,0.00017485,2]
[402673045,1768785033091,-2500.0,0.00017485,2]
[402673046,1768785033101,-2000.0,0.000175,2]
[402673047,1768785033111,-151.31640827,0.00017534,2]
[402673048,1768785033121,-1000.0,0.00017534,2]
[402673049,1768785033131,-423.0,0.00017581,2]
[402673050,1768785033140,-2585.82,0.00017588,2]
[402673051,1768785033151,-26352.09896951,0.00017588,2]
[402673052,1768785033163,-21776.6870214,0.00017588,2]
[402673053,1768785033174,-550.45616674,0.00017588,2]
[402673054,1768785033186,-879.45743612,0.00017588,2]
[402673055,1768785033206,-2318.425,0.00017588,2]
[402673056,1768785033232,-2286.90336051,0.00017588,2]
[402673061,1768785038198,-3379.8,0.00016965,2]
[402673081,1768785038920,-525.30424147,0.00016965,2]
[402673082,1768785038930,-110771.27361312,0.00017588,2]
[402673083,1768785038942,-2585.82,0.00017634,2]
[402673084,1768785038952,-423.0,0.00017644,2]
[402673085,1768785038963,-151.31640827,0.00017656,2]
[402673086,1768785038972,-2585.82,0.0001768,2]
[402673087,1768785038983,-500.0,0.00017699,2]
[402673088,1768785038994,-150.0,0.00017699,2]
[402673089,1768785039004,-150.0,0.00017699,2]
[402673090,1768785039015,-150.0,0.00017699,2]
[402673091,1768785039025,-150.0,0.00017699,2]
[402673092,1768785039039,-500.0,0.00017699,2]
[402673093,1768785039049,-483.0,0.00017699,2]
[402673094,1768785039059,-2585.82,0.00017727,2]
[402673095,1768785039068,-500.0,0.00017753,2]
[402673096,1768785039078,-500.0,0.00017753,2]
[402673097,1768785039089,-500.0,0.00017754,2]
[402673098,1768785039099,-150.0,0.00017754,2]
[402673099,1768785039108,-150.0,0.00017754,2]
[402673100,1768785039118,-150.0,0.00017754,2]
[402673101,1768785039128,-500.0,0.00017754,2]
[402673102,1768785039139,-483.0,0.00017754,2]
[402673103,1768785039150,-2585.82,0.00017773,2]
[402673104,1768785039161,-1275.528,0.00017777,2]
[402673105,1768785039171,-516.87,0.00017777,2]
[402673106,1768785039181,-151.31640827,0.00017778,2]
[402673107,1768785039191,-1202.0,0.00017787,2]
[402673108,1768785039202,-915.0,0.00017787,2]
[402673109,1768785039213,-500.0,0.00017788,2]
[402673110,1768785039223,-500.0,0.00017799,2]
[402673111,1768785039234,-500.0,0.00017799,2]
[402673112,1768785039244,-500.0,0.00017799,2]
[402673113,1768785039255,-500.0,0.00017799,2]
[402673114,1768785039267,-4826.0,0.00017799,2]
[402673115,1768785039276,-566.0,0.00017799,2]
[402673116,1768785039286,-200.0,0.00017808,2]
[402673117,1768785039296,-1000.0,0.00017808,2]
[402673118,1768785039306,-25.57019204,0.00017809,2]
[402673119,1768785039320,-474.42980796,0.00017809,2]
[402673120,1768785039335,-150.0,0.00017809,2]
[402673121,1768785039344,-185.4329826,0.00017809,2]
[402673122,1768785039356,-314.5670174,0.00017809,2]
[402673123,1768785039366,-483.0,0.00017809,2]
[402673124,1768785039375,-3800.88214708,0.00017809,2]
[402673125,1768785039402,-2761.11785292,0.00017809,2]
[402673126,1768785039411,-150.0,0.00017812,2]
[402673127,1768785039421,-300.0,0.00017812,2]
[402673128,1768785039430,-150.0,0.00017812,2]
[402673129,1768785039441,-2585.82,0.00017819,2]
[402673130,1768785039451,-129.00324877,0.0001782,2]
[402673138,1768785042009,-1.7e-07,0.00017171,2]
[402673139,1768785042043,-150.99999983,0.00017171,2]
[402673140,1768785042054,-214.96399994,0.0001782,2]
[402673141,1768785042065,-137.48182129,0.0001782,2]
[402673142,1768785042075,-325.02317871,0.0001782,2]
[402673143,1768785042087,-156.42589129,0.0001782,2]
[402673144,1768785042098,-166.66,0.00017822,2]
[402673145,1768785042108,-11.70910863,0.00017855,2]
[402673146,1768785042123,-488.29089137,0.00017855,2]
[402673147,1768785042133,-500.0,0.00017855,2]
[402673148,1768785042143,-4888.63174222,0.00017863,2]
[402673149,1768785042152,-8624.12586131,0.00017863,2]
[402673150,1768785042162,-346.65696172,0.00017863,2]
[402673151,1768785042178,-12554.51955171,0.00017863,2]
[402673152,1768785042192,-17455.7493,0.00017863,2]
[402673153,1768785042204,-500.0,0.00017863,2]
[402673154,1768785042214,-150.0,0.00017863,2]
[402673155,1768785042224,-500.0,0.00017863,2]
[402673156,1768785042234,-483.0,0.00017863,2]
[402673157,1768785042245,-2585.82,0.00017866,2]
[402673158,1768785042255,-617.40005154,0.00017875,2]
[402673159,1768785042264,-150.12,0.00017879,2]
[402673160,1768785042275,-5404.34010151,0.000179,3]
[402673161,1768785042285,-500.0,0.000179,2]
[402673162,1768785042295,-213.63728059,0.000179,2]
[402673163,1768785042305,-1694.33819335,0.000179,2]
[402673164,1768785042314,-151.31640827,0.000179,2]
[402673165,1768785042324,-11111.21371389,0.000179,2]
[402673166,1768785042333,-160.32930478,0.000179,2]
[402673167,1768785042344,-160.32930478,0.000179,2]
[402673168,1768785042353,-160.32930478,0.000179,2]
[402673169,1768785042363,-160.32930478,0.000179,2]
[402673170,1768785042373,-160.32930478,0.000179,2]
[402673171,1768785042387,-160.32930478,0.000179,2]
[402673172,1768785042396,-160.32930478,0.000179,2]
[402673173,1768785042406,-2585.82,0.00017912,2]
[402673174,1768785042416,-198.58095138,0.00017917,2]
[402673175,1768785042426,-299.99999999,0.00017918,2]
[402673176,1768785042436,-483.0,0.00017918,2]
[402673177,1768785042446,-2585.82,0.00017958,2]
[402673178,1768785042456,-500.0,0.00017973,2]
[402673179,1768785042465,-500.0,0.00017973,2]
[402673180,1768785042475,-150.0,0.00017973,2]
[402673181,1768785042485,-500.0,0.00017973,2]
[402673182,1768785042494,-483.0,0.00017973,2]
[402673183,1768785042504,-1680.0,0.00017986,2]
[402673184,1768785042514,-420.0,0.00017988,2]
[402673185,1768785042523,-1000.0,0.00017994,2]
[402673186,1768785042532,-150.0,0.00017999,2]
[402673187,1768785042542,-260.21982214,0.00017999,2]
[402673188,1768785042552,-8588.192344,0.00017999,2]
[402673189,1768785042562,-500.0,0.00017999,2]
[402673190,1768785042572,-500.0,0.00017999,2]
[402673191,1768785042584,-500.0,0.00017999,2]
[402673192,1768785042594,-17022.670919,0.00017999,2]
[402673193,1768785042605,-175.5218998,0.00017999,2]
[402673194,1768785042614,-150.0,0.00017999,2]
[402673195,1768785042624,-542.31023243,0.00017999,2]
[402673196,1768785042634,-283.90524213,0.00017999,2]
[402673197,1768785042643,-338.00458705,0.00017999,2]
[402673198,1768785042653,-500.0,0.00017999,2]
[402673199,1768785042663,-220.12080317,0.00017999,2]
[402673200,1768785042672,-500.0,0.00017999,2]
[402673201,1768785042683,-209.89758523,0.00017999,2]
[402673202,1768785042703,-500.0,0.00017999,2]
[402673203,1768785042718,-500.0,0.00017999,2]
[402673204,1768785042729,-500.0,0.00017999,2]
[402673205,1768785042738,-500.0,0.00017999,2]
[402673206,1768785042748,-500.0,0.00017999,2]
[402673207,1768785042760,-500.0,0.00017999,2]
[402673208,1768785042769,-500.0,0.00017999,2]
[402673209,1768785042779,-500.0,0.00017999,2]
[402673210,1768785042795,-500.0,0.00017999,2]
[402673211,1768785042816,-500.0,0.00017999,2]
[402673212,1768785042832,-500.0,0.00017999,2]
[402673213,1768785042843,-500.0,0.00017999,2]
[402673214,1768785042854,-628.35363101,0.00017999,2]
[402673215,1768785042864,-500.0,0.00017999,2]
[402673216,1768785042875,-500.0,0.00017999,2]
[402673217,1768785042886,-500.0,0.00017999,2]
[402673219,1768785042898,-500.0,0.00017999,2]
[402673220,1768785042913,-500.0,0.00017999,2]
[402673221,1768785042923,-500.0,0.00017999,2]
[402673222,1768785042935,-500.0,0.00017999,2]
[402673223,1768785042945,-500.0,0.00017999,2]
[402673224,1768785042958,-500.0,0.00017999,2]
[402673225,1768785042968,-500.0,0.00017999,2]
[402673227,1768785042978,-500.0,0.00017999,2]
[402673228,1768785042988,-500.0,0.00017999,2]
[402673229,1768785042999,-500.0,0.00017999,2]
[402673230,1768785043010,-500.0,0.00017999,2]
[402673231,1768785043019,-500.0,0.00017999,2]
[402673232,1768785043030,-500.0,0.00017999,2]
[402673233,1768785043041,-500.0,0.00017999,2]
[402673234,1768785043051,-500.0,0.00017999,2]
[402673235,1768785043060,-500.0,0.00017999,2]
[402673236,1768785043070,-500.0,0.00017999,2]
[402673237,1768785043080,-500.0,0.00017999,2]
[402673238,1768785043090,-500.0,0.00017999,2]
[402673239,1768785043100,-500.0,0.00017999,2]
[402673240,1768785043110,-500.0,0.00017999,2]
[402673241,1768785043120,-500.0,0.00017999,2]
[402673242,1768785043131,-500.0,0.00017999,2]
[402673245,1768785043141,-500.0,0.00017999,2]
[402673246,1768785043151,-500.0,0.00017999,2]
[402673247,1768785043160,-500.0,0.00017999,2]
[402673248,1768785043170,-500.0,0.00017999,2]
[402673249,1768785043180,-500.0,0.00017999,2]
[402673250,1768785043190,-500.0,0.00017999,2]
[402673251,1768785043200,-500.0,0.00017999,2]
[402673252,1768785043210,-500.0,0.00017999,2]
[402673253,1768785043219,-500.0,0.00017999,2]
[402673254,1768785043230,-500.0,0.00017999,2]
[402673255,1768785043241,-500.0,0.00017999,2]
[402673256,1768785043250,-500.0,0.00017999,2]
[402673257,1768785043260,-500.0,0.00017999,2]
[402673258,1768785043270,-500.0,0.00017999,2]
[402673259,1768785043279,-500.0,0.00017999,2]
[402673260,1768785043289,-500.0,0.00017999,2]
[402673261,1768785043299,-500.0,0.00017999,2]
[402673262,1768785043308,-500.0,0.00017999,2]
[402673263,1768785043318,-485.80193216,0.00017999,2]
[402673264,1768785043327,-500.0,0.00017999,2]
[402673265,1768785043337,-500.0,0.00017999,2]
[402673266,1768785043347,-500.0,0.00017999,2]
[402673267,1768785043357,-500.0,0.00017999,2]
[402673268,1768785043367,-500.0,0.00017999,2]
[402673269,1768785043377,-500.0,0.00017999,2]
[402673270,1768785043387,-500.0,0.00017999,2]
[402673271,1768785043396,-500.0,0.00017999,2]
[402673272,1768785043406,-500.0,0.00017999,2]
[402673273,1768785043416,-500.0,0.00017999,2]
[402673274,1768785043426,-500.0,0.00017999,2]
[402673275,1768785043437,-500.0,0.00017999,2]
[402673276,1768785043449,-500.0,0.00017999,2]
[402673277,1768785043459,-500.0,0.00017999,2]
[402673278,1768785043469,-500.0,0.00017999,2]
[402673279,1768785043479,-500.0,0.00017999,2]
[402673280,1768785043489,-500.0,0.00017999,2]
[402673282,1768785043499,-500.0,0.00017999,2]
[402673284,1768785043510,-500.0,0.00017999,2]
[402673286,1768785043520,-500.0,0.00017999,2]
[402673287,1768785043531,-500.0,0.00017999,2]
[402673288,1768785043542,-500.0,0.00017999,2]
[402673290,1768785043553,-500.0,0.00017999,2]
[402673292,1768785043564,-500.0,0.00017999,2]
[402673293,1768785043574,-500.0,0.00017999,2]
[402673294,1768785043584,-500.0,0.00017999,2]
[402673295,1768785043594,-500.0,0.00017999,2]
[402673296,1768785043604,-500.0,0.00017999,2]
[402673297,1768785043614,-500.0,0.00017999,2]
[402673298,1768785043624,-500.0,0.00017999,2]
[402673299,1768785043634,-500.0,0.00017999,2]
[402673300,1768785043644,-500.0,0.00017999,2]
[402673302,1768785043654,-3323.0,0.00018,2]
[402673303,1768785043664,-2154429.16053836,0.00018,2]
[402673304,1768785044106,-3905.10424147,0.00017199,2]
[402673305,1768785044116,-160.32930478,0.000179,2]
[402673306,1768785044126,-43667.75262912,0.00018,2]
[402673309,1768785046078,-266260.68107727,0.00018,2]
[402673311,1768785046092,-1344.94581109,0.00018,2]
[402673312,1768785046212,-57.00193295,0.00018,2]
[402673313,1768785046261,-1446.18982888,0.00018,2]
[402673314,1768785046275,-452.70499935,0.00018,2]
[402673316,1768785046588,-3905.10424147,0.00017432,2]
[402673317,1768785046597,-398.27293911,0.00017809,2]
[402673318,1768785046608,-2040.72706089,0.00017809,2]
[402673319,1768785046617,-3535.61008911,0.00018,2]
[402673327,1768785135882,-499.90375109,0.00015894,2]
[402673328,1768785138026,-0.09624891,0.00015894,2]
[402673329,1768785138049,-203.37103298,0.00015894,2]
[402673330,1768785140282,-170.6533443,0.00015894,2]
[402673331,1768785140323,5295.52,0.00027397,120]
[402673332,1768785166359,-125.97562272,0.00015894,2]
[402673333,1768785166381,-174.0518003,0.00016356,2]
[402673334,1768785167817,-245.23471979,0.00015894,2]
[402673335,1768785172410,-254.76528021,0.00015894,2]
[402673336,1768785172431,-10.03654332,0.00015894,2]
[402673337,1768785175147,-169.3770358,0.00015894,2]
[402673338,1768785177300,-26.84382213,0.00015894,2]
[402673339,1768785177323,-271.53911011,0.00016356,2]
[402673340,1768785182386,-54.40908959,0.00016356,2]
[402673341,1768785182409,-218.13627742,0.00016356,2]
[402673342,1768785185061,-176.0904459,0.00016356,2]
[402673343,1768785195824,-105.77327668,0.00016356,2]
[402673344,1768785195845,-69.61293946,0.00016356,2]
[402673345,1768785198432,-151.21241997,0.00016356,2]
[402673346,1768785199943,-183.56049534,0.00016356,2]
[402673348,1768785205136,-95.61414523,0.00016356,2]
[402673349,1768785205159,-154.62452806,0.00016356,2]
[402673350,1768785208304,-222.07799881,0.00016356,2]
[402673351,1768785255779,-279.25814848,0.00016256,2]
[402673352,1768785258477,-191.1803794,0.00016256,2]
[402673353,1768785270798,-29.56147212,0.00016256,2]
[402673354,1768785270819,-123.29747313,0.00016356,2]
[402673355,1768785270845,-227.87507243,0.00016356,2]
[402673356,1768785272884,-215.14510851,0.00016356,2]
[402673357,1768785315870,-56.97981906,0.00016356,2]
[402673358,1768785315892,-345.53271284,0.00016438,2]
[402673359,1768785317461,-376.82252216,0.00016438,2]
[402673360,1768785323350,-151.0,0.0001618,2]
[402673361,1768785323375,-69.73892236,0.0001618,2]
[402673362,1768785327656,-81.26107764,0.0001618,2]
[402673363,1768785327688,-151.0,0.0001618,2]
[402673364,1768785327721,-9.43093202,0.0001618,2]
[402673365,1768785329645,-141.56906798,0.0001618,2]
[402673366,1768785329678,-151.0,0.0001618,2]
[402673367,1768785329711,-15.86478841,0.0001618,2]
[402673368,1768785345810,-135.13521159,0.0001618,2]
[402673369,1768785345835,-151.0,0.0001618,2]
[402673370,1768785345858,-117.9116858,0.0001618,2]
[402673371,1768785348482,-40.0883142,0.0001618,2]
[402673372,1768785348505,-209.78581975,0.00016356,2]
[402673373,1768785350462,-268.70490039,0.00016356,2]
[402673374,1768785376193,-21.50927986,0.00016356,2]
[402673375,1768785376216,-149.01672381,0.00016397,2]
[402673376,1768785378493,-100.98327619,0.00016397,2]
[402673377,1768785378515,-52.80549635,0.00016438,2]
[402673378,1768785381399,-24.83926865,0.00016438,2]
[402673379,1768785381421,-229.56785902,0.0001662,2]
[402673380,1768785405950,-346.21122746,0.00016356,2]
[402673381,1768785407559,-53.78877254,0.00016356,2]
[402673382,1768785407581,-153.61255542,0.0001662,2]
[402673383,1768785407603,-88.81903795,0.00016703,2]
[402673384,1768785410567,-203.77963409,0.00016703,2]
[402673385,1768785413099,-418.57614971,0.00016703,2]
[402673386,1768785415065,-207.02324591,0.00016703,2]
[402673387,1768785417622,-255.88840929,0.00016703,2]
[402673388,1768785421782,-206.31,0.00016703,2]
[402673389,1768785424469,-193.60683155,0.00016703,2]
[402673390,1768785426415,-200.0455132,0.00016703,2]
[402673391,1768785427897,-161.28693797,0.00016703,2]
[402673392,1768785430523,-148.87424033,0.00016703,2]
[402673393,1768785430548,-208.38867204,0.00016762,2]
[402673394,1768785433808,-340.89100927,0.00016762,2]
[402673395,1768785437746,-189.35580295,0.00016703,2]
[402673396,1768785439364,-159.10899073,0.00016703,2]
[402673397,1768785442208,-161.80446071,0.000162,2]
[402673398,1768785445336,-178.67630316,0.000162,2]
[402673399,1768785447368,-244.27365434,0.000162,2]
[402673400,1768785449687,-191.0812197,0.000162,2]
[402673401,1768785457320,-248.85453284,0.000162,2]
[402673402,1768785459687,-333.46869592,0.000162,2]
[402673403,1768785463484,-182.90113333,0.000162,2]
[402673404,1768785463505,-34.53717943,0.00016678,2]
[402673405,1768785466335,-158.82216465,0.00016678,2]
[402673406,1768785471868,-28.71865492,0.00016678,2]
[402673407,1768785471890,-183.83281438,0.00016703,2]
[402673408,1768785474555,-45.91163502,0.00016703,2]
[402673409,1768785474579,-148.62924378,0.00016762,2]
[402673410,1768785477363,-203.45020466,0.00016356,2]
[402673411,1768785478948,-296.54979534,0.00016356,2]
[402673412,1768785478973,-23.36879927,0.00016762,2]
[402673413,1768785482676,-252.84476261,0.00016762,2]
[402673414,1768785485260,-20.87751303,0.00016762,2]
[402673415,1768785485285,-201.31570511,0.00016765,2]